bitfinex-derivatives/quotes_SOLF0:USTF0_20250803
["timestamp","ask_amount","ask_price","bid_price","bid_amount"]
[1754219430891,115.88,162.11,162.1,3.16]
[1754219444801,112.66,162.11,162.1,3.16]
[1754219445302,115.84,162.11,162.1,3.16]
[1754219449113,3.18,162.12,162.1,3.16]
[1754219449603,3.18,162.12,162.1,5.16491508]
[1754219449805,3.18,162.12,162.11,3.27]
[1754219450400,5.28146815,162.13,162.1,5.16491508]
[1754219450605,8.46146815,162.13,162.12,3.27]
[1754219450909,3.18,162.12,162.11,3.27]
[1754219451895,3.18,162.12,162.11,8.43491508]
[1754219452303,3.18,162.12,162.11,3.27]
[1754219462407,5.28146815,162.13,162.11,3.27]
[1754219462612,5.28146815,162.13,162.12,3.35]
[1754219462812,5.28146815,162.13,162.12,8.50469848]
[1754219463521,5.28146815,162.13,162.12,3.35]
[1754219463822,5.28146815,162.13,162.12,8.50469848]
[1754219464218,162.75268679,162.23,162.13,3.35]
[1754219464219,3.3,162.22,162.13,3.35]
[1754219464416,3.3,162.22,162.15,3.35]
[1754219464615,3.3,162.22,162.16,3.35]
[1754219467324,3.3,162.22,162.15,109.35242196]
[1754219467622,3.3,162.22,162.15,112.70242196]
[1754219467815,3.3,162.22,162.16,3.35]
[1754219468619,3.3,162.22,162.15,109.35242196]
[1754219468824,112.58,162.21,162.16,3.35]
[1754219469026,3.3,162.21,162.16,3.35]
[1754219469721,3.3,162.2,162.16,3.35]
[1754219471521,3.3,162.23,162.16,3.35]
[1754219472920,112.58,162.24,162.16,3.35]
[1754219473127,3.3,162.27,162.17,3.35]
[1754219474025,3.3,162.29,162.17,3.35]
[1754219474218,382.58875716,162.33,162.2,3.35]
[1754219474421,3.3,162.35,162.23,8.5016557]
[1754219474725,3.3,162.35,162.24,3.35]
[1754219475817,6.9293866,162.44,162.23,118.1116557]
[1754219476023,112.98,162.43,162.27,5.1516557]
[1754219476222,3.3,162.42,162.28,5.1516557]
[1754219476524,3.3,162.42,162.29,3.35]
[1754219477329,3.3,162.42,162.32,5.1516557]
[1754219477536,3.3,162.42,162.33,3.35]
[1754219477830,3.3,162.44,162.33,3.35]
[1754219478220,3.3,162.49,162.34,3.35]
[1754219480129,3.3,162.48,162.34,3.35]
[1754219481028,113.4,162.47,162.34,3.35]
[1754219481225,3.3,162.46,162.34,3.35]
[1754219486634,113.32,162.46,162.34,3.35]
[1754219486830,3.3,162.45,162.34,3.35]
[1754219490034,113.22,162.48,162.34,3.35]
[1754219490240,3.3,162.47,162.34,3.35]
[1754219496541,3.3,162.47,162.36,3.38]
[1754219496842,3.3,162.47,162.37,3.38]
[1754219500243,3.2,162.49,162.37,3.38]
[1754219507849,3.2,162.49,162.38,3.38]
[1754219509452,5.21859352,162.5,162.38,3.38]
[1754219509661,3.2,162.49,162.38,3.38]
[1754219510252,3.2,162.49,162.38,8.41267631]
[1754219510455,3.2,162.49,162.39,3.38]
[1754219511053,3.2,162.49,162.4,3.38]
[1754219511459,3.2,162.49,162.41,3.38]
[1754219513456,3.2,162.49,162.42,3.38]
[1754219515267,3.2,162.49,162.42,5.05145765]
[1754219515466,3.2,162.49,162.43,3.38]
[1754219516365,3.2,162.49,162.43,5.05145765]
[1754219516566,3.2,162.49,162.44,3.38]
[1754219517470,3.2,162.49,162.44,8.43145765]
[1754219517667,3.2,162.49,162.45,3.38]
[1754219518368,3.2,162.49,162.45,8.43145765]
[1754219519470,3.2,162.49,162.46,5.05145765]
[1754219520774,3.2,162.49,162.46,8.43145765]
[1754219522472,3.2,162.49,162.46,5.05145765]
[1754219523773,3.2,162.49,162.47,5.05145765]
[1754219524173,3.2,162.49,162.46,5.05145765]
[1754219524575,3.2,162.49,162.46,8.55145765]
[1754219525176,3.2,162.49,162.46,5.05145765]
[1754219525977,3.2,162.49,162.47,5.05145765]
[1754219526376,3.2,162.49,162.47,3.5]
[1754219526777,3.2,162.49,162.46,8.592924]
[1754219528385,3.2,162.49,162.46,5.092924]
[1754219529286,3.2,162.49,162.45,5.092924]
[1754219529985,3.2,162.49,162.45,8.592924]
[1754219530385,3.2,162.49,162.46,3.5]
[1754219531086,3.2,162.49,162.47,3.5]
[1754219532388,3.41,162.49,162.46,3.5]
[1754219532987,3.41,162.48,162.46,3.5]
[1754219533990,3.41,162.49,162.46,8.592924]
[1754219534183,8.62859352,162.5,162.47,5.092924]
[1754219534389,5.21859352,162.5,162.47,5.092924]
[1754219534589,5.21859352,162.5,162.49,3.5]
[1754219534889,3.41,162.49,162.48,3.5]
[1754219535389,3.41,162.49,162.47,3.5]
[1754219536181,5.21859352,162.5,162.46,5.092924]
[1754219536390,3.41,162.49,162.48,3.5]
[1754219540395,3.41,162.49,162.48,5.092924]
[1754219540892,8.62859352,162.5,162.49,3.5]
[1754219541294,8.62859352,162.5,162.48,8.592924]
[1754219541595,3.41,162.49,162.48,8.592924]
[1754219542796,3.41,162.49,162.48,5.092924]
[1754219543294,3.41,162.49,162.48,8.592924]
[1754219545694,3.41,162.49,162.48,3.5]
[1754219546892,8.62859352,162.5,162.48,3.5]
[1754219547102,8.62859352,162.5,162.49,3.5]
[1754219547999,5.21859352,162.5,162.49,3.5]
[1754219548192,1e-08,162.5,162.49,10.37468498]
[1754219548595,1e-08,162.5,162.49,3.5]
[1754219549111,1e-08,162.5,162.49,10.31530033]
[1754219549299,1e-08,162.5,162.49,3.5]
[1754219550299,3.41,162.59,162.52,3.99999999]
[1754219550598,3.41,162.59,162.52,8.61203426]
[1754219551005,3.41,162.59,162.52,5.11203426]
[1754219551197,3.41,162.59,162.52,8.61203426]
[1754219552395,3.41,162.59,162.53,5.11203426]
[1754219553796,3.41,162.59,162.53,8.35934914]
[1754219555099,3.41,162.59,162.53,3.25]
[1754219555504,3.41,162.59,162.53,8.35934914]
[1754219556303,3.41,162.59,162.53,3.25]
[1754219558308,3.41,162.59,162.53,8.35934914]
[1754219560004,3.41,162.59,162.54,3.25]
[1754219560808,3.41,162.59,162.55,3.25]
[1754219561311,3.43,162.59,162.54,3.25]
[1754219561508,3.43,162.59,162.55,3.25]
[1754219562106,3.43,162.59,162.53,5.10934914]
[1754219562703,3.43,162.59,162.53,8.35934914]
[1754219563409,3.43,162.59,162.54,3.25]
[1754219564312,3.43,162.59,162.55,3.25]
[1754219565314,3.43,162.59,162.54,3.25]
[1754219567415,3.43,162.59,162.55,3.25]
[1754219570016,3.43,162.59,162.56,3.25]
[1754219575515,3.43,162.59,162.57,3.25]
[1754219577617,3.43,162.59,162.54,5.10934914]
[1754219577819,3.43,162.59,162.55,3.25]
[1754219578215,3.43,162.59,162.54,3.25]
[1754219578616,816.41254053,162.68,162.54,3.25]
[1754219578819,3.43,162.66,162.56,3.25]
[1754219580622,3.43,162.66,162.55,3.25]
[1754219581218,3.43,162.66,162.54,3.25]
[1754219585328,3.43,162.66,162.54,8.35934914]
[1754219585628,3.43,162.66,162.55,3.32]
[1754219586417,3.43,162.66,162.55,5.10934914]
[1754219586623,3.43,162.66,162.56,3.32]
[1754219588128,3.43,162.66,162.55,8.42934914]
[1754219588328,3.43,162.66,162.56,3.32]
[1754219589818,405.09196894,162.68,162.59,3.32]
[1754219590017,3.25,162.67,162.6,3.32]
[1754219590221,3.25,162.74,162.62,5.10934914]
[1754219590430,3.25,162.74,162.63,3.32]
[1754219590636,1.07002844,162.74,162.61,5.10934914]
[1754219590823,3.25,162.73,162.6,8.42934914]
[1754219591126,3.25,162.72,162.6,5.10934914]
[1754219591334,3.25,162.72,162.61,3.32]
[1754219593829,3.25,162.72,162.58,3.32]
[1754219600338,6.9293866,162.72,162.58,3.32]
[1754219600539,3.25,162.71,162.58,3.32]
[1754219600934,6.9293866,162.71,162.58,3.32]
[1754219601145,3.25,162.7,162.58,3.32]
[1754219601345,3.25,162.68,162.58,3.32]
[1754219603946,3.25,162.68,162.58,8.42934914]
[1754219604148,3.25,162.68,162.59,3.32]
[1754219607346,3.25,162.68,162.6,3.32]
[1754219607555,114.32,162.69,162.6,3.32]
[1754219607846,3.25,162.67,162.6,3.32]
[1754219608050,3.25,162.67,162.61,3.32]
[1754219611153,117.57,162.69,162.61,3.32]
[1754219611352,3.25,162.69,162.61,3.32]
[1754219611556,3.25,162.69,162.62,3.32]
[1754219611953,3.37,162.71,162.62,3.32]
[1754219612153,3.37,162.71,162.62,8.42934914]
[1754219612355,3.37,162.71,162.64,3.32]
[1754219612658,117.61,162.72,162.64,3.32]
[1754219612955,3.37,162.72,162.64,3.32]
[1754219614657,3.37,162.72,162.63,5.10934914]
[1754219614658,3.37,162.72,162.65,3.32]
[1754219615157,3.37,162.72,162.65,5.10934914]
[1754219615363,3.37,162.72,162.66,3.32]
[1754219624165,3.37,162.76,162.66,3.32]
[1754219624566,117.69,162.77,162.66,3.32]
[1754219624866,3.37,162.76,162.67,3.32]
[1754219629665,3.37,162.76,162.68,3.32]
[1754219630868,3.37,162.76,162.69,3.32]
[1754219632662,413.1,162.82,162.69,3.32]
[1754219632867,3.37,162.81,162.69,3.32]
[1754219633562,3.37,162.81,162.69,5.10934914]
[1754219633870,3.37,162.81,162.7,3.32]
[1754219634767,3.37,162.81,162.71,8.42934914]
[1754219634963,3.37,162.81,162.72,3.32]
[1754219636170,3.37,162.81,162.73,3.32]
[1754219636370,114.08,162.83,162.74,3.32]
[1754219636371,3.37,162.83,162.74,3.32]
[1754219641670,3.37,162.83,162.73,3.32]
[1754219643570,3.37,162.83,162.73,8.42934914]
[1754219643770,3.37,162.83,162.74,3.23]
[1754219651675,3.37,162.83,162.73,5.10934914]
[1754219651877,3.37,162.83,162.75,3.23]
[1754219652775,3.37,162.83,162.75,8.33934914]
[1754219652976,3.37,162.83,162.76,3.23]
[1754219655281,3.37,162.83,162.77,8.33934914]
[1754219655680,3.37,162.83,162.78,3.23]
[1754219655876,3.37,162.83,162.79,3.23]
[1754219656278,3.37,162.83,162.78,3.23]
[1754219657276,3.37,162.83,162.79,3.23]
[1754219657482,3.38,162.82,162.78,3.23]
[1754219657683,3.38,162.82,162.79,3.23]
[1754219659186,3.38,162.82,162.77,5.10934914]
[1754219659381,3.38,162.82,162.78,3.23]
[1754219659591,3.38,162.82,162.75,8.33934914]
[1754219659885,3.38,162.82,162.76,3.23]
[1754219661486,3.38,162.82,162.77,3.23]
[1754219661684,3.38,162.82,162.77,5.10934914]
[1754219661882,3.38,162.82,162.78,3.23]
[1754219662085,3.38,162.82,162.79,3.23]
[1754219662383,3.38,162.82,162.78,3.23]
[1754219662584,3.38,162.82,162.79,3.23]
[1754219664287,3.38,162.82,162.77,5.10934914]
[1754219664487,3.38,162.82,162.8,3.23]
[1754219664786,3.38,162.85,162.78,3.23]
[1754219665481,3.38,162.85,162.79,3.23]
[1754219666685,3.38,162.85,162.77,8.33934914]
[1754219666887,3.38,162.85,162.77,3.23]
[1754219667285,3.38,162.85,162.77,8.33934914]
[1754219667487,3.38,162.85,162.78,3.23]
[1754219668990,3.38,162.85,162.79,3.23]
[1754219669387,3.38,162.85,162.79,8.33934914]
[1754219669590,3.38,162.85,162.8,3.23]
[1754219670091,3.38,162.85,162.78,5.10934914]
[1754219670390,3.38,162.85,162.81,3.23]
[1754219671392,3.38,162.85,162.82,3.23]
[1754219674688,3.38,162.85,162.8,8.33934914]
[1754219674888,3.38,162.85,162.8,5.10934914]
[1754219675094,3.38,162.85,162.8,8.33934914]
[1754219675484,3.38,162.85,162.8,5.10934914]
[1754219675993,3.38,162.85,162.81,3.23]
[1754219676193,3.38,162.85,162.81,8.33934914]
[1754219676495,3.38,162.85,162.83,3.23]
[1754219676894,3.36,162.85,162.83,3.23]
[1754219677489,3.36,162.85,162.84,3.23]
[1754219678795,3.36,162.85,162.83,3.23]
[1754219679195,3.36,162.84,162.82,5.10934914]
[1754219679397,3.36,162.84,162.83,3.23]
[1754219680495,3.36,162.84,162.82,5.10934914]
[1754219680695,3.36,162.84,162.81,5.10934914]
[1754219680895,3.36,162.84,162.81,8.33934914]
[1754219681595,3.36,162.84,162.81,5.10934914]
[1754219682601,3.36,162.84,162.8,5.10934914]
[1754219682900,3.36,162.84,162.79,8.33934914]
[1754219685700,3.36,162.84,162.79,5.10934914]
[1754219685899,3.36,162.84,162.78,8.33934914]
[1754219686101,3.36,162.84,162.8,3.23]
[1754219686301,3.36,162.84,162.81,3.23]
[1754219686705,3.36,162.84,162.8,8.33934914]
[1754219686899,3.36,162.84,162.8,5.10934914]
[1754219687096,3.36,162.84,162.8,8.33934914]
[1754219687300,3.36,162.84,162.81,3.23]
[1754219687504,3.36,162.84,162.82,3.23]
[1754219687906,3.36,162.84,162.8,5.10934914]
[1754219688100,3.36,162.83,162.82,3.23]
[1754219689008,3.36,162.83,162.82,8.33934914]
[1754219689203,5.15571891,162.86,162.82,8.33934914]
[1754219689503,3.36,162.85,162.83,3.23]
[1754219689705,5.15571891,162.86,162.83,3.23]
[1754219689903,3.36,162.85,162.83,8.33934914]
[1754219690106,3.36,162.84,162.83,8.33934914]
[1754219691198,3.36,162.85,162.84,3.23]
[1754219691905,3.36,162.85,162.84,8.33934914]
[1754219692704,3.36,162.85,162.84,3.23]
[1754219692907,3.36,162.85,162.83,5.10934914]
[1754219692908,5.15571891,162.86,162.83,5.10934914]
[1754219693105,8.51571891,162.86,162.83,8.33934914]
[1754219693304,8.51571891,162.86,162.84,3.23]
[1754219693609,8.51571891,162.86,162.85,3.23]
[1754219695412,3.36,162.85,162.84,3.23]
[1754219696812,5.15571891,162.86,162.84,3.23]
[1754219697108,5.15571891,162.86,162.84,8.33934914]
[1754219697307,3.36,162.85,162.84,8.33934914]
[1754219698205,8.51571891,162.86,162.85,3.23]
[1754219698510,8.51571891,162.86,162.85,124.27328567]
[1754219700315,8.51571891,162.86,162.85,121.04328567]
[1754219701310,3.36,162.85,162.83,5.10934914]
[1754219701511,3.36,162.85,162.82,5.10934914]
[1754219701714,3.36,162.85,162.82,8.43934914]
[1754219702012,3.36,162.85,162.82,5.10934914]
[1754219702215,3.36,162.85,162.81,5.10934914]
[1754219702603,118.88,162.85,162.78,5.10934914]
[1754219702813,3.5,162.84,162.75,5.10934914]
[1754219703011,3.5,162.84,162.71,5.10934914]
[1754219703514,3.5,162.84,162.7,5.10934914]
[1754219704116,3.5,162.84,162.65,6.81604568]
[1754219704320,3.5,162.84,162.63,3.33]
[1754219704610,6.9293866,162.83,162.63,3.33]
[1754219704810,3.5,162.82,162.63,3.33]
[1754219705016,3.5,162.81,162.59,10.14604568]
[1754219705206,3.5,162.81,162.59,3.33]
[1754219705207,21.96,162.8,162.59,3.33]
[1754219705409,21.96,162.79,162.59,3.33]
[1754219705707,3.5,162.77,162.59,3.33]
[1754219707211,3.5,162.77,162.57,3.33]
[1754219707911,3.5,162.76,162.51,294.98515871]
[1754219708110,3.5,162.76,162.44,27.01492973]
[1754219708111,3.5,162.74,162.52,3.33]
[1754219708314,3.5,162.72,162.52,3.33]
[1754219708515,3.5,162.71,162.52,3.33]
[1754219708716,3.5,162.69,162.52,3.33]
[1754219709516,3.5,162.69,162.5,3.33]
[1754219712713,116.16,162.68,162.5,3.33]
[1754219713016,3.5,162.67,162.5,3.33]
[1754219713513,3.5,162.65,162.5,3.33]
[1754219713708,3.5,162.63,162.5,3.33]
[1754219713906,3.5,162.61,162.5,3.33]
[1754219714114,3.5,162.59,162.5,3.33]
[1754219717309,119.78,162.58,162.5,3.33]
[1754219717509,3.5,162.57,162.5,3.33]
[1754219718216,413.1,162.62,162.5,3.33]
[1754219718419,529.54,162.62,162.5,3.33]
[1754219718619,3.5,162.61,162.5,3.33]
[1754219723528,116.36,162.6,162.5,3.33]
[1754219723722,3.5,162.59,162.5,3.33]
[1754219725729,116.44,162.58,162.5,3.33]
[1754219726430,116.44,162.57,162.5,3.33]
[1754219726934,416.6,162.62,162.5,3.33]
[1754219727124,116.42,162.6,162.5,3.33]
[1754219728230,353.0,162.71,162.5,3.33]
[1754219728231,116.36,162.64,162.5,3.33]
[1754219729932,119.82,162.7,162.5,3.33]
[1754219732326,116.32,162.7,162.5,3.33]
[1754219732633,3.27,162.69,162.5,3.33]
[1754219735441,3.27,162.69,162.52,3.18]
[1754219736533,3.27,162.69,162.52,116.36]
[1754219736734,3.27,162.69,162.53,3.18]
[1754219740149,3.27,162.67,162.53,3.18]
[1754219741552,3.27,162.65,162.53,3.18]
[1754219741746,3.27,162.63,162.53,3.18]
[1754219743047,3.27,162.7,162.53,3.18]
[1754219743238,3.27,162.68,162.53,3.18]
[1754219746344,3.27,162.68,162.54,3.18]
[1754219746650,3.27,162.7,162.55,3.18]
[1754219746951,3.27,162.7,162.57,3.18]
[1754219748453,3.27,162.7,162.56,122.85604568]
[1754219748454,3.27,162.7,162.59,3.18]
[1754219748750,3.27,162.7,162.6,3.18]
[1754219750653,3.27,162.7,162.59,6.81604568]
[1754219750851,3.27,162.7,162.61,3.18]
[1754219753054,172.79110068,162.72,162.61,3.18]
[1754219753257,3.27,162.71,162.61,3.18]
[1754219761061,3.27,162.71,162.55,6.81604568]
[1754219761263,3.27,162.71,162.53,6.81604568]
[1754219761556,3.27,162.71,162.48,3.18]
[1754219761756,10.1993866,162.71,162.48,3.18]
[1754219761958,18.47,162.7,162.48,3.18]
[1754219762157,21.77,162.68,162.48,3.18]
[1754219762359,3.3,162.67,162.48,3.18]
[1754219763053,3.3,162.65,162.48,3.18]
[1754219764457,117.64,162.64,162.48,3.18]
[1754219764658,3.3,162.63,162.48,3.18]
[1754219764858,3.3,162.63,162.46,3.38]
[1754219766563,3.3,162.61,162.46,3.38]
[1754219767365,3.3,162.61,162.41,3.38]
[1754219767568,3.3,162.61,162.39,3.38]
[1754219768462,10.2293866,162.61,162.39,3.38]
[1754219768663,3.3,162.59,162.39,3.38]
[1754219768859,3.3,162.57,162.39,3.38]
[1754219770064,119.04,162.56,162.39,3.38]
[1754219770273,3.3,162.55,162.39,3.38]
[1754219772877,118.96,162.54,162.39,3.38]
[1754219773066,3.3,162.53,162.39,3.38]
[1754219773373,3.3,162.52,162.39,3.38]
[1754219777576,118.74,162.51,162.39,3.38]
[1754219778976,122.04,162.51,162.39,3.38]
[1754219779174,3.3,162.5,162.39,3.38]
[1754219780779,3.3,162.52,162.39,3.38]
[1754219780972,118.66,162.51,162.39,3.38]
[1754219781381,17.64134096,162.53,162.39,3.38]
[1754219781580,139.48134096,162.53,162.39,3.38]
[1754219782382,3.3,162.57,162.39,3.38]
[1754219784476,3.3,162.57,162.39,8.40835125]
[1754219784676,3.3,162.57,162.4,3.38]
[1754219793490,118.04,162.56,162.4,3.38]
[1754219793693,3.45,162.55,162.4,3.38]
[1754219796078,121.43,162.54,162.4,3.38]
[1754219796685,3.45,162.54,162.4,3.38]
[1754219797090,117.9,162.55,162.4,3.38]
[1754219797791,117.9,162.55,162.41,3.37]
[1754219798393,3.45,162.57,162.41,5.02835125]
[1754219798582,3.45,162.57,162.42,3.37]
[1754219800593,3.45,162.57,162.42,5.02835125]
[1754219800797,3.45,162.57,162.43,5.02835125]
[1754219800994,3.45,162.57,162.44,3.37]
[1754219801289,3.45,162.57,162.44,5.02835125]
[1754219801594,3.45,162.57,162.46,3.37]
[1754219803398,3.45,162.57,162.47,3.37]
[1754219804802,3.45,162.57,162.48,5.02835125]
[1754219805397,3.45,162.57,162.48,8.39835125]
[1754219805999,3.45,162.57,162.48,5.02835125]
[1754219806200,3.45,162.57,162.49,8.39835125]
[1754219806400,3.45,162.57,162.48,5.02835125]
[1754219806808,3.45,162.57,162.49,3.37]
[1754219806998,117.5,162.56,162.5,3.37]
[1754219807198,117.5,162.56,162.5,8.39835125]
[1754219807394,120.95,162.56,162.51,3.37]
[1754219807602,3.45,162.55,162.51,3.37]
[1754219809002,117.5,162.56,162.5,5.02835125]
[1754219809211,3.45,162.55,162.49,5.02835125]
[1754219809409,3.45,162.55,162.49,8.39835125]
[1754219811207,3.45,162.55,162.49,3.37]
[1754219812702,3.45,162.55,162.47,3.37]
[1754219815007,3.45,162.55,162.48,3.37]
[1754219817109,3.45,162.55,162.48,8.39835125]
[1754219817310,3.45,162.55,162.49,3.37]
[1754219818011,117.2,162.54,162.49,3.37]
[1754219818512,120.65,162.54,162.49,3.37]
[1754219820213,117.2,162.54,162.49,3.37]
[1754219820607,120.51,162.56,162.49,3.37]
[1754219820811,3.45,162.56,162.5,3.37]
[1754219821012,120.53,162.56,162.5,3.37]
[1754219822405,120.53,162.56,162.5,8.39835125]
[1754219822605,10.3940799,162.67,162.52,3.32]
[1754219822606,3.21,162.59,162.52,3.32]
[1754219823008,3.21,162.59,162.52,8.34835125]
[1754219823206,3.21,162.59,162.53,3.32]
[1754219823404,3.21,162.59,162.55,3.32]
[1754219823812,3.21,162.58,162.54,5.02835125]
[1754219824011,3.21,162.57,162.56,3.32]
[1754219824412,117.04,162.6,162.54,3.32]
[1754219824715,3.21,162.59,162.54,3.32]
[1754219824915,3.21,162.59,162.52,3.32]
[1754219826708,3.21,162.59,162.52,8.34835125]
[1754219826917,3.21,162.58,162.53,3.32]
[1754219827214,3.21,162.57,162.53,3.32]
[1754219827715,120.13,162.59,162.53,3.32]
[1754219828513,3.21,162.58,162.53,3.32]
[1754219828915,3.21,162.57,162.53,3.32]
[1754219830016,116.92,162.59,162.53,8.34835125]
[1754219830217,116.92,162.59,162.54,3.32]
[1754219830416,3.21,162.58,162.54,3.32]
[1754219832421,116.92,162.59,162.54,3.32]
[1754219832618,3.21,162.61,162.54,3.32]
[1754219835723,3.21,162.61,162.56,3.32]
[1754219836121,3.21,162.62,162.56,3.32]
[1754219836522,3.21,162.62,162.56,8.40614165]
[1754219836822,3.21,162.62,162.58,3.32]
[1754219837822,3.21,162.65,162.59,3.32]
[1754219838521,3.21,162.65,162.59,5.08614165]
[1754219838722,3.21,162.65,162.6,3.32]
[1754219841125,3.21,162.67,162.6,3.32]
[1754219845924,3.21,162.67,162.56,5.08614165]
[1754219846125,3.21,162.67,162.57,3.32]
[1754219850934,3.21,162.67,162.58,3.32]
[1754219854130,3.21,162.67,162.58,8.40614165]
[1754219854438,3.21,162.67,162.59,3.3]
[1754219862142,3.21,162.67,162.59,8.38614165]
[1754219862341,3.21,162.67,162.6,3.3]
[1754219864133,3.21,162.67,162.61,3.3]
[1754219864334,209.73195077,162.74,162.62,3.3]
[1754219864539,119.13,162.73,162.62,3.3]
[1754219864738,3.27,162.72,162.62,3.3]
[1754219880556,3.27,162.72,162.62,8.38614165]
[1754219880753,3.27,162.72,162.63,3.3]
[1754219882457,3.27,162.72,162.66,3.42]
[1754219882663,3.27,162.72,162.68,3.42]
[1754219882866,118.75,162.72,162.68,3.42]
[1754219883669,3.32,162.71,162.68,3.42]
[1754219883963,3.32,162.7,162.68,3.42]
[1754219885471,3.32,162.71,162.66,3.42]
[1754219885763,3.32,162.71,162.67,3.42]
[1754219885966,3.32,162.71,162.63,3.42]
[1754219891572,3.32,162.71,162.61,3.42]
[1754219894567,3.32,162.7,162.61,3.42]
[1754219898474,115.16,162.69,162.61,3.42]
[1754219898672,3.32,162.68,162.61,3.42]
[1754219903180,3.32,162.68,162.59,3.42]
[1754219903383,4.39037402,162.68,162.58,3.42]
[1754219903572,3.32,162.67,162.58,3.42]
[1754219911184,3.32,162.66,162.58,3.42]
[1754219911595,118.72,162.65,162.58,3.42]
[1754219912291,3.45,162.64,162.58,3.42]
[1754219914690,115.4,162.65,162.58,3.42]
[1754219914691,118.85,162.65,162.58,3.42]
[1754219915193,115.32,162.66,162.58,3.42]
[1754219917886,3.45,162.68,162.59,8.34614165]
[1754219918086,3.45,162.68,162.6,3.26]
[1754219919285,622.93195077,162.74,162.6,3.26]
[1754219919492,115.42,162.73,162.61,3.26]
[1754219919686,3.45,162.72,162.62,3.26]
[1754219921889,115.42,162.73,162.62,3.26]
[1754219922095,115.42,162.73,162.62,8.34614165]
[1754219922393,115.42,162.73,162.63,3.26]
[1754219922594,115.42,162.73,162.63,8.34614165]
[1754219922791,115.42,162.73,162.63,5.08614165]
[1754219922990,115.42,162.73,162.64,8.34614165]
[1754219923190,115.42,162.73,162.65,3.26]
[1754219924496,3.45,162.72,162.65,3.26]
[1754219935492,115.42,162.73,162.65,3.26]
[1754219935698,3.45,162.72,162.65,3.26]
[1754219935899,115.42,162.73,162.65,3.26]
[1754219936299,118.87,162.73,162.65,3.26]
[1754219939305,115.42,162.73,162.65,3.26]
[1754219941102,213.18195077,162.74,162.65,3.26]
[1754219941308,324.69195077,162.74,162.65,8.34614165]
[1754219941508,324.69195077,162.74,162.66,3.26]
[1754219942405,328.19195077,162.74,162.66,3.26]
[1754219943710,213.23195077,162.74,162.66,3.26]
[1754219945110,3.5,162.73,162.66,3.26]
[1754219951719,3.5,162.73,162.63,3.41]